Cogmind - Beta 13 @@@ ROGUE MODE // 2024.05.28 @ 11:34:09 Player: GFYguy Result: Self-destructed Performance ------------- Evolutions (2) 1000 Regions Visited (4) 800 Robots Destroyed (49) 245 Value Destroyed (1302) 1302 Prototype IDs (4) 80 Alien Tech Used (0) 0 Bonus (49) 49 TOTAL SCORE: 3476 Bonus ------- Follower Combat Kills 49 Cogmind --------- Core Integrity 348/550 Matter 253/300 Energy 265/265 System Corruption 0% Temperature Cool (0) Movement Walking (123) Location -8/Materials Parts ------- > --- POWER (1) -------- Improved Ion Engine > --- PROPULSION (3) --- Carbon-fiber Leg Carbon-fiber Leg Titanium Leg > --- UTILITY (4) ------ Medium Storage Unit Armor Integrity Analyzer Dynamic Insulation System > --- WEAPON (3) ------- Autogun Missile Launcher > --- INVENTORY (10) --- Cooled Ion Engine VSS Leg Improved Carbon-fiber Leg Improved Carbon-fiber Leg Improved Heat Sink High-capacity Matter Pod (200) Experimental Sensor Array Improved Targeting Computer Improved Targeting Computer Transmission Jammer Peak State ------------ > --- POWER ------------ Cooled Ion Engine > --- PROPULSION ------- Carbon-fiber Leg Carbon-fiber Leg Carbon-fiber Leg > --- UTILITY ---------- Improved Heat Sink Medium Storage Unit Armor Integrity Analyzer Particle Charger > --- WEAPON ----------- Field Laser Pulse Rifle Advanced Beam Cannon > --- INVENTORY -------- Improved Ion Engine Carbon-fiber Leg Improved Carbon-fiber Leg Improved Carbon-fiber Leg High-capacity Matter Pod Experimental Sensor Array Advanced Beam Cannon Autogun Autogun [Rating: 35] Favorites ----------- Power Cooled Ion Engine Engine Cooled Ion Engine Propulsion Armored Wheel Leg Aluminum Leg Wheel Armored Wheel Utility Medium Storage Unit Device Improved Heat Sink Storage Medium Storage Unit Processor Transport Network Coupler Protection Light Armor Plating Weapon Light Cannon Energy Gun Pulse Rifle Energy Cannon Advanced Beam Cannon Ballistic Gun Autogun Ballistic Cannon Light Cannon Launcher Missile Launcher Build | -11 -10 -9 -9 -8 ------- Run | Yrd Mat Mat Min Mat Slots Evolved 4 | . . 2 . 2 Power . | . . . . . Propulsion 1 | . . . . 1 Utility 2 | . . 2 . . Weapon 1 | . . . . 1 Parts Attached 60 | 7 12 11 6 24 Power 8 | 1 3 2 1 1 Engine 8 | 1 3 2 1 1 Core . | . . . . . Reactor . | . . . . . Propulsion 12 | 3 2 . . 7 Treads . | . . . . . Leg 9 | 2 . . . 7 Wheel 3 | 1 2 . . . Hover . | . . . . . Flight . | . . . . . Utility 19 | 1 3 5 3 7 Device 6 | . . 1 1 4 Storage 5 | 1 2 1 1 . Processor 4 | . 1 1 . 2 Hackware . | . . . . . Protection 4 | . . 2 1 1 Artifact . | . . . . . Weapon 21 | 2 4 4 2 9 Energy Gun 3 | 1 . . . 2 Energy Cannon 5 | . . 2 . 3 Ballistic Gun 8 | 1 . 2 2 3 Ballistic Cannon 4 | . 4 . . . Launcher 1 | . . . . 1 Special Weapon . | . . . . . Impact Weapon . | . . . . . Slashing Weapon . | . . . . . Piercing Weapon . | . . . . . Special Melee Weapon . | . . . . . Unidentified Prototypes 4 | . . 3 1 . Parts Lost 14 | . . 1 2 11 Power . | . . . . . Propulsion 1 | . . . . 1 Utility 6 | . . 1 . 5 Weapon 7 | . . . 2 5 Highest Loss Streak 5 | . . 1 2 5 To Critical Strikes . | . . . . . Average Slot Usage (%) 96 | . 96 96 99 92 Engine 11 | . 14 11 11 8 Leg 16 | . 26 . . 24 Wheel 8 | . 1 22 22 1 Device 3 | . . 4 . 12 Storage 15 | . 16 14 22 11 Processor 9 | . 8 11 11 9 Protection 4 | . . 11 11 1 Energy Gun 1 | . 1 . . 3 Energy Cannon 3 | . . 9 . 4 Ballistic Gun 8 | . 1 6 21 14 Ballistic Cannon 11 | . 25 6 . . Naked Turns . | . . . . . Heaviest Build 36 | 12 21 35 35 36 Greatest Support 47 | 20 24 24 24 47 Greatest Overweight (x) 6 | . 6 1 1 1 Average Overweight (x) . | . . . 1 . Largest Inventory Capacity 10 | 8 10 10 10 10 Average Capacity 9 | 6 8 10 10 10 Most Carried 10 | 8 10 10 10 10 Average Carried 8 | 4 7 9 9 8 Final Capacity 10 | 8 10 10 10 10 Final Carried 10 | 4 9 10 8 10 Class Distribution -------------------- 78% | Mutant 12% | Scavenger-Gunner 3% | Scavenger-Mutant Dominant Class ---------------- Mutant | -10/Materials Mutant | -9/Materials Mutant | -9/Mines Scavenger-Gunner | -8/Materials Resources | -11 -10 -9 -9 -8 ----------- Run | Yrd Mat Mat Min Mat Matter Collected 1702 | 228 551 218 237 468 Remotely . | . . . . . Salvage Created 1641 | . 384 387 277 593 Parts 114 | . 44 24 16 30 Haulers Intercepted 5 | . 2 3 . . Recyclers Shooed . | . . . . . Parts Field Recycled . | . . . . . Retrieved Matter . | . . . . . Parts Self-Destructed . | . . . . . Prevented . | . . . . . Kills | -11 -10 -9 -9 -8 ------- Run | Yrd Mat Mat Min Mat Combat Hostiles Destroyed 35 | . 12 6 6 11 Guns 15 | . . 2 6 7 Cannons 19 | . 12 4 . 3 Classes Destroyed 12 | . 5 2 2 3 Builder 3 | . . 1 1 1 Hauler 5 | . 2 3 . . Recycler 3 | . 1 . 1 1 Watcher 4 | . 3 1 . . Swarmer 10 | . 6 2 1 1 Grunt 12 | . 6 . 3 3 Brawler 1 | . . . 1 . Sentry 5 | . . 4 . 1 Specialist 4 | . . . . 4 Hunter 1 | . . . . 1 Heavy 1 | . . . . 1 Assembled 1 | . . . 1 . Best Kill Streak 5 | . 5 2 3 3 Combat Bots Only 3 | . 3 2 2 3 Max Kills in Single Turn 2 | . 2 1 2 2 Gunslinging . | . . . . . Exploded . | . . . . . Melee . | . . . . . Uniques/NPCs Destroyed . | . . . . . Combat | -11 -10 -9 -9 -8 -------- Run | Yrd Mat Mat Min Mat Hostile Shots Fired 224 | . 38 50 32 104 Missed 60 | . 12 15 9 24 Damage Taken 2779 | . 251 410 475 1643 Core 442 | . 35 126 79 202 Absorbed by Shields . | . . . . . Core Remaining (%) 78 | 100 86 . 48 . Volleys Fired 129 | . 29 33 17 50 Largest 3 | . 2 2 2 3 Hottest 194 | . 70 136 46 194 Shots Fired 282 | . 58 66 33 125 Gun 147 | . 2 16 33 96 Cannon 135 | . 56 50 . 29 Launcher . | . . . . . Special . | . . . . . Kinetic 198 | . 57 28 33 80 Thermal 84 | . 1 38 . 45 Explosive . | . . . . . Electromagnetic . | . . . . . Robot Hit Streak 12 | . 5 12 7 11 Robot Miss Streak 5 | . 5 3 2 3 Penetration Max . | . . . . . Secondary Targets 1 | . . . 1 . Max Gunslinging Chain 1 | . . . 1 . Shots Hit Robots 184 | . 29 45 22 88 Core Hits 70 | . 18 14 11 27 Critical Kills 1 | . . . . 1 Critical Parts Destroyed . | . . . . . Critical Strikes 4 | . 3 . . 1 Meltdown 1 | . . . . 1 Blast 3 | . 3 . . . Melee Attacks . | . . . . . Impact . | . . . . . Slashing . | . . . . . Piercing . | . . . . . Sneak Attacks . | . . . . . Combat Hostiles . | . . . . . Follow-up Attacks . | . . . . . Damage Inflicted 3248 | . 559 866 351 1472 Guns 1610 | . 26 176 351 1057 Cannons 1630 | . 533 682 . 415 Explosions . | . . . . . Melee . | . . . . . Ramming 8 | . . 8 . . Kinetic 2095 | . 547 369 351 828 Thermal 1145 | . 12 489 . 644 Explosive . | . . . . . Electromagnetic . | . . . . . Impact . | . . . . . Slashing . | . . . . . Piercing . | . . . . . Highest Corruption 2 | . 2 2 2 . Average Corruption 1 | . 2 1 2 . Corruption Purged . | . . . . . Corruption Blocked . | . . . . . Effects 7 | . 1 1 5 . Message Errors 3 | . 1 1 1 . Matter Fused 2 | . . . 2 . Heat Flow Errors 2 | . . . 2 . Overload Shots . | . . . . . Overflow Damage 16 | . 16 . . . Projectiles 16 | . 16 . . . Explosions . | . . . . . Melee . | . . . . . Knockbacks 5 | . 5 . . . Impact . | . . . . . Kinetic 4 | . 4 . . . Secondary 1 | . 1 . . . Self-Inflicted Damage 4 | . . 4 . . Shots . | . . . . . Rammed 1 | . . 1 . . Targets Rammed 1 | . . 1 . . Kicked . | . . . . . Crushed . | . . . . . Highest Temperature 267 | . 54 216 267 216 Average Temperature 45 | . 17 51 44 71 Received Heat Transfer 498 | . 69 90 51 288 Effects 1 | . . . 1 . Energy Bleed 1 | . . . 1 . Siege Activations . | . . . . . Robots Corrupted . | . . . . . Combat Hostiles . | . . . . . Parts Fried . | . . . . . Impact Corruptions . | . . . . . Robots Melted 1 | . . . . 1 Combat Hostiles 1 | . . . . 1 Parts Melted 13 | . . 2 1 10 Heat Transferred 2146 | . 37 888 . 1221 Parts Sabotaged . | . . . . . Parts Stolen . | . . . . . Parts Stripped . | . . . . . Power Chain Reactions . | . . . . . Alert | -11 -10 -9 -9 -8 ------- Run | Yrd Mat Mat Min Mat Peak Influence 277 | . 234 270 193 277 Initial 59 | . . 32 18 59 Average 118 | . 110 112 123 144 Maximum Alert Level 1 | . 1 1 . 1 Low Security (%) 86 | 100 95 81 100 66 Level 1 13 | . 4 18 . 33 Level 2 . | . . . . . Level 3 . | . . . . . Level 4 . | . . . . . Level 5 . | . . . . . High Security . | . . . . . Max Security . | . . . . . Squads Dispatched 8 | . 2 1 . 5 Investigation 3 | . 1 1 . 1 Extermination . | . . . . . Reinforcement 5 | . 1 . . 4 Assault . | . . . . . Garrison . | . . . . . Intercept . | . . . . . Searches Triggered . | . . . . . Construction Impeded . | . . . . . Haulers Reinforced . | . . . . . Active Scanning Responses . | . . . . . Cargo Convoy Interrupts . | . . . . . Stealth | -11 -10 -9 -9 -8 --------- Run | Yrd Mat Mat Min Mat Distress Signals 3 | . 2 1 . . Communications Jammed . | . . . . . Distress Signals . | . . . . . Times Spotted 70 | . 17 10 27 16 Peak Tracking Total 14 | . 4 3 14 8 Tactical Retreats 6 | . 1 1 1 3 Traps | -11 -10 -9 -9 -8 ------- Run | Yrd Mat Mat Min Mat Traps Triggered 4 | . 2 2 . . Indirectly . | . . . . . Trap Hack Attempts . | . . . . . Triggered . | . . . . . Disarmed . | . . . . . Reprogrammed . | . . . . . Reused . | . . . . . Traps Extracted . | . . . . . Installed . | . . . . . Triggered . | . . . . . Machines | -11 -10 -9 -9 -8 ---------- Run | Yrd Mat Mat Min Mat Machines Disabled 2 | . 2 . . . Max in Single Turn 1 | . 1 . . . Machines Repaired . | . . . . . Machines Dismantled . | . . . . . Machines Sabotaged . | . . . . . Overloaded Fab Kills . | . . . . . Hacking | -11 -10 -9 -9 -8 --------- Run | Yrd Mat Mat Min Mat Machines Accessed 7 | . 3 2 . 2 Terminals 5 | . 3 1 . 1 Fabricators . | . . . . . Repair Stations . | . . . . . Recycling Units 1 | . . . . 1 Scanalyzers 1 | . . 1 . . Garrison Access . | . . . . . Total Hacks 18 | . 7 6 . 5 Successful 9 | . 3 4 . 2 Failed 9 | . 4 2 . 3 Catastrophic 1 | . 1 . . . Database Lockouts . | . . . . . Manual . | . . . . . Terminals 12 | . 7 3 . 2 Fabricators . | . . . . . Repair Stations . | . . . . . Recycling Units 3 | . . . . 3 Scanalyzers 3 | . . 3 . . Garrison Access . | . . . . . Terminal Hacks 4 | . 3 1 . . Alert Level 1 | . 1 . . . Unreport Threat 1 | . . 1 . . Assault Status 1 | . 1 . . . Registered Components 1 | . 1 . . . Fabricator Hacks . | . . . . . Repair Station Hacks . | . . . . . Recycling Unit Hacks 2 | . . . . 2 Report Inventory 1 | . . . . 1 Retrieve Components 1 | . . . . 1 Scanalyzer 3 | . . 3 . . Insert Component 1 | . . 1 . . Analyze 2 | . . 2 . . Garrison Access Hacks . | . . . . . Unauthorized Hacks . | . . . . . Terminals . | . . . . . Fabricators . | . . . . . Repair Stations . | . . . . . Recycling Units . | . . . . . Scanalyzers . | . . . . . Garrison Access . | . . . . . Data Cores Recovered . | . . . . . Used . | . . . . . Hacking Detections 6 | . 3 1 . 2 Full Trace Events 2 | . . 1 . 1 Feedback Events 1 | . . 1 . . Corruption 1 | . . 1 . . Feedback Blocked . | . . . . . Robot Schematics Acquired . | . . . . . Robots Built . | . . . . . Authchips . | . . . . . Time . | . . . . . Total Robot Build Rating . | . . . . . Part Schematics Acquired 1 | . . 1 . . Parts Built . | . . . . . Authchips . | . . . . . Time . | . . . . . Total Part Build Rating . | . . . . . Parts Repaired . | . . . . . Time . | . . . . . Parts Recycled . | . . . . . Recycled Matter . | . . . . . Retrieved Matter . | . . . . . Retrieved Components 1 | . . . . 1 Parts Scanalyzed 1 | . . 1 . . Part Schematics Acquired 1 | . . 1 . . Parts Damaged . | . . . . . Bothacking | -11 -10 -9 -9 -8 ------------ Run | Yrd Mat Mat Min Mat Used RIF Installer . | . . . . . Robots Hacked . | . . . . . Non-combat . | . . . . . Combat . | . . . . . Robot Hacks Applied . | . . . . . Relay Couplers Released . | . . . . . Fabnet Peak Effective % . | . . . . . Robots Rewired . | . . . . . Allies Hacked . | . . . . . Hacks Repelled . | . . . . . Allies | -11 -10 -9 -9 -8 -------- Run | Yrd Mat Mat Min Mat Total Allies 3 | . . . 3 . Largest Group 3 | . . . 3 . Highest-Rated Group 40 | . . . 40 . Highest-Rated Ally 16 | . . . 16 . Total Orders . | . . . . . Ally Attacks 27 | . . . 27 . Total Damage 317 | . . . 317 . Kills 3 | . . . 3 . Allies Corrupted . | . . . . . Allies Melted . | . . . . . Intel | -11 -10 -9 -9 -8 ------- Run | Yrd Mat Mat Min Mat Robot Analysis Total . | . . . . . Derelict Logs Recovered 1 | . . . 1 . Drone Launches . | . . . . . Drone Recoveries . | . . . . . Exploration | -11 -10 -9 -9 -8 ------------- Run | Yrd Mat Mat Min Mat Turns Passed 2403 | 49 938 487 385 544 Spaces Moved 1494 | 42 596 353 253 250 Core 13 | 12 1 . . . Treads . | . . . . . Legs 794 | 4 569 . . 221 Wheels 687 | 26 26 353 253 29 Hover . | . . . . . Flight . | . . . . . Fastest Speed 50 | 50 90 90 105 105 Average Speed 114 | 75 129 100 105 118 Slowest Speed 350 | 120 350 105 105 123 Overloaded Moves . | . . . . . Propulsion Burnouts . | . . . . . Robots Hopped . | . . . . . Cave-ins Triggered . | . . . . . Exploration Rate (%) 37 | 3 82 37 48 17 Regions Visited 4 Branch Regions 1 Pre-discovered Areas . | . . . . . Known Exits Taken . | . . . . . Unknown Exits Taken 4 | 1 1 1 1 . Scrap Searched 2 | . . . 2 . Spaces Dug . | . . . . . Terrain Destroyed 1 | . . . . 1 Melee . | . . . . . Projectile 1 | . . . . 1 AOE . | . . . . . Terrain Rammed . | . . . . . Walls Destroyed . | . . . . . Machines Disabled . | . . . . . Actions | -11 -10 -9 -9 -8 --------- Run | Yrd Mat Mat Min Mat Total 1943 | 60 713 422 345 403 Wait 149 | . 27 7 66 49 Move 1490 | 41 595 352 252 250 Hop . | . . . . . Pick Up 70 | 11 27 10 2 20 Fast Attach 7 | . 1 2 . 4 Attach 26 | 7 2 3 2 12 Detach . | . . . . . Swap 27 | . 9 6 4 8 Drop 44 | 1 23 8 2 10 Fire 129 | . 29 33 17 50 Melee . | . . . . . Ram 1 | . . 1 . . Kick . | . . . . . Crush . | . . . . . Escape Stasis . | . . . . . Rewire . | . . . . . Trap . | . . . . . Miscellaneous . | . . . . . Route ------- -11/Scrapyard -10/Materials (discovered 4 exits: *Mat x3 / [*Min]) -9/Materials -9/Mines -8/Materials History --------- Turn | Location | Event 9 | -11/Scrapyard | Discovered new exit (range 15) 50 | -11/Scrapyard | Entered Materials 290 | -10/Materials | Discovered new exit (range 10) 312 | -10/Materials | Build established: Mutant 451 | -10/Materials | Discovered new exit (range 14) 521 | -10/Materials | Discovered new exit (range 13) 671 | -10/Materials | Discovered new exit (range 15) 988 | -10/Materials | Entered another Materials area 988 | -9/Materials | Evolved 2 slots: Utility x2 1349 | -9/Materials | Discovered new exit (range 10) 1475 | -9/Materials | Entered Mines 1477 | -9/Mines | Assisted by bots powering up and referring to "LRC-V3" 1509 | -9/Mines | Found a damaged Exp. Sensor Array with a note attached 1513 | -9/Mines | Found Prototype Device 1596 | -9/Mines | Discovered new exit (range 11) 1610 | -9/Mines | Identified Exp. Sensor Array 1739 | -9/Mines | Assembled infested the area 1792 | -9/Mines | Learned location of 1 exit from Proximity Caves 1799 | -9/Mines | Core integrity fell below 50% 1860 | -9/Mines | Entered Materials 1860 | -8/Materials | Evolved 2 slots: Propulsion x1, Weapon x1 2224 | -8/Materials | Lost 5 parts (1n1u3w) 2404 | -8/Materials | Self-destructed Last Messages --------------- Dropped Cld. Ion Engine. Acquired Cld. Ion Engine. Dropped Lgt. Nuclear Core. Dropped Carbon-fiber Leg. Acquired Imp. Targeting Computer. Dropped Imp. Heat Sink. Acquired Imp. Targeting Computer. Connecting with Terminal... ALERT: Suspicious activity at Terminal M004. Dispatching Investigation squad. G-47 Trooper destroyed. K-01 Serf collects debris. Dropped Carbon-fiber Leg. K-01 Serf cleans the Electrolysis Chamber. Acquired 44 matter. Destroyed Flight Unit. U-05 Engineer destroyed. S-10 Pest destroyed. Imp. Targeting Computer destroyed. Shotgun destroyed. Map ----- +----------------------------------------------------+ | ????????????????????? ##########+### # """ | | ?????????????????????# # """ | | ?????????????????????# ! + | | ?????????????????????# % # """ | | ?????????????????????? ##########+### # """ | | ??????????????????????# ####### % ## #= """ | | ??????????????????????# #! + % %## # | | ??????????????????????# # #%% ## ###### | | ??????????????????????# # # % %% ## ###### | | ??????????????????????# # """ # = ## ##[[ | | ??????????????????????# + """ #%% ! ## ##[[ | | ???????????????######## # """ ###+#### #[[ | | ???????????????# "T" # # ### ##?# # | | ???????????????# # # #?# #??# % + | | ???????????????# # # #?#=#??# =%%# ! | | ???????????????#! """ + # #?# #??# =!= # | | ???????????????# """ # #! = #?# #?####+####### | | ???????????????#! """ # # *[ #?# #?# != !* #? | | ???????????????######## #######?# #?# """=""" #? | | ??????????????????????# #???????# #?# """!""" #? | | ??????????????????????# #???????# #?# """ """ #? | | ??????????????????????# #???????# ### #? | | ??????????############# #######! # / !#? | | ????????? # "Y" #? | | ????????? a !=* # """ #? | | ????????? !%@ !###########? | | ??????????##############g######## #??????????? | | ???????????????????# [= #?????? ###??????????? | | ???????????????????# """ #?????? ?????????????? | | ???????????????????#= """ #????????????????????? | | ???????????????????# ! """ #????????????????????? | | ???????????????????# #????????????????????? | | ???????????????????# ! """ #????????????????????? | | ???????????????????# """ #????????????????????? | | ???????????????????#! """ / ???????????????????? | | ???????????????????# ! ###??????????????????? | | ???????????????????##########????????????????????? | | ?????????????????????????????????????????????????? | | ?????????????????????????????????????????????????? | | ?????????????????????????????????????????????????? | | ?????????????????????????????????????????????????? | | ?????????????????????????????????????????????????? | | ?????????????????????????????????????????????????? | | ?????????????????????????????????????????????????? | | ?????????????????????????????????????????????????? | | ?????????????????????????????????????????????????? | | ?????????????????????????????????????????????????? | | ?????????????????????????????????????????????????? | | ?????????????????????????????????????????????????? | | ?????????????????????????????????????????????????? | +----------------------------------------------------+ Best States ------------- Heat Dissipation 59 Energy Generation 14 Energy Capacity 280 Matter Stores 500 Matter Capacity 500 Sight Range 16 Terrain Scan Density 10 EM Shielding 2 Armor Coverage 225 Evasion (%) 55 Targeting Accuracy 6 Armor Integrity Analysis 30 Particle Charging 15 Item Schematics ----------------- Cld. Ion Engine | -9/Materials | Scanalyzed Robot Schematics ------------------ None Fabricated ------------ Nothing Alien Tech Used ----------------- None Achievements -------------- None Challenges ------------ None Game ------ Seed EtherialGuidedCoupler Manual? 0 Play Time 00:27:37 Cumulative 25.2 hours Start 2024.05.26 @ 02:31:41 End 2024.05.28 @ 11:34:09 Sessions 1 Manual Loads 0 Difficulty Rogue Special Mode None Game No. 38 Rogue 38 Adventurer 0 Explorer 0 Win Type - Total 0 Types 0/0/0/0/0/0/0/0/0 Lore% 16 Gallery% 25 Achievement% 20 Wizard Run 0 Options --------- Layout 1 ASCII 0 Keyboard 0 Movement Mouse Keybinds 0 Fullscreen 2 Font 24/Smallcaps Map View 50x35 Zoom Use 0% Tactical HUD 0 Map Filters NONE Filters NONE Steam 1 RUN: 900e244f-388b-4b20-836e-b81f7a43e07e